fUST/lending_fUST_20251026
["ID","MTS","AMOUNT","RATE_DAILY","PERIOD"]
[392443736,1761483036391,-500.0,0.00023987,2]
[392443737,1761483036408,-500.0,0.00023987,2]
[392443738,1761483036417,-500.0,0.00023987,2]
[392443739,1761483036426,-500.0,0.00023987,2]
[392443740,1761483036436,-500.0,0.00023987,2]
[392443741,1761483036446,-531.53105665,0.00023987,2]
[392443742,1761483036456,-500.0,0.00023987,2]
[392443743,1761483036465,-500.0,0.00023987,2]
[392443744,1761483036474,-500.0,0.00023987,2]
[392443745,1761483036483,-500.0,0.00023987,2]
[392443746,1761483036492,-500.0,0.00023987,2]
[392443747,1761483036501,-318.42757459,0.00023987,2]
[392443748,1761483036510,-500.0,0.00023987,2]
[392443749,1761483036519,-500.0,0.00023987,2]
[392443750,1761483036528,-500.0,0.00023987,2]
[392443751,1761483036538,-500.0,0.00023987,2]
[392443752,1761483036547,-500.0,0.00023987,2]
[392443753,1761483036556,-500.0,0.00023987,2]
[392443754,1761483036565,-500.0,0.00023987,2]
[392443755,1761483036575,-500.0,0.00023987,2]
[392443756,1761483036584,-500.0,0.00023987,2]
[392443757,1761483036594,-500.0,0.00023987,2]
[392443758,1761483036603,-500.0,0.00023987,2]
[392443759,1761483036612,-500.0,0.00023987,2]
[392443760,1761483036622,-500.0,0.00023987,2]
[392443761,1761483036631,-233.94399786,0.00023987,2]
[392443762,1761483036641,-500.0,0.00023987,2]
[392443763,1761483036650,-500.0,0.00023987,2]
[392443764,1761483036659,-500.0,0.00023987,2]
[392443765,1761483036667,-500.0,0.00023987,2]
[392443766,1761483036678,-500.0,0.00023987,2]
[392443767,1761483036687,-500.0,0.00023987,2]
[392443768,1761483036697,-500.0,0.00023987,2]
[392443769,1761483036707,-546.75420966,0.00023987,2]
[392443770,1761483036716,-500.0,0.00023987,2]
[392443771,1761483036726,-500.0,0.00023987,2]
[392443772,1761483036735,-500.0,0.00023987,2]
[392443773,1761483036744,-500.0,0.00023987,2]
[392443774,1761483036755,-500.0,0.00023987,2]
[392443775,1761483036764,-500.0,0.00023987,2]
[392443776,1761483036773,-500.0,0.00023987,2]
[392443777,1761483036783,-501.648231,0.00023987,2]
[392443778,1761483036792,-500.0,0.00023987,2]
[392443779,1761483036801,-190.76852455,0.00023989,2]
[392443780,1761483036812,-500.0,0.00023989,2]
[392443781,1761483036822,-30452.93,0.0002399,2]
[392443782,1761483036831,-403.49456409,0.0002474,2]
[392443783,1761483036841,-197.64231027,0.00024796,2]
[392443784,1761483036850,-8748.80237976,0.00024796,2]
[392443785,1761483036859,-299.0141461,0.000248,2]
[392443786,1761483036869,-163.4939006,0.000248,2]
[392443787,1761483036878,-590.6573528,0.000248,2]
[392443788,1761483036887,-299.0141461,0.000248,2]
[392443789,1761483036896,-163.4939006,0.000248,2]
[392443790,1761483036906,-590.6573528,0.000248,2]
[392443791,1761483036916,-463.36823279,0.00024873,2]
[392443792,1761483036926,-500.0,0.00024873,2]
[392443793,1761483036935,-500.0,0.00024873,2]
[392443794,1761483036946,-151.0,0.00024885,2]
[392443795,1761483036955,-207.21505215,0.00024885,2]
[392443796,1761483036965,-962.96,0.00024886,3]
[392443797,1761483036976,-894.19,0.00024886,3]
[392443798,1761483036986,-447.09,0.00024886,3]
[392443799,1761483036995,-223.55,0.00024886,3]
[392443800,1761483037003,-670.67,0.00024886,3]
[392443801,1761483037013,-2968.73,0.00024886,10]
[392443802,1761483037022,-4080.09,0.00024886,10]
[392443803,1761483037030,-63622.47236119,0.00024896,2]
[392443804,1761483037220,-500.0,0.00023987,2]
[392443805,1761483037230,-50232.26657901,0.00024896,2]
[392443806,1761483037240,-206183.47833789,0.00024896,2]
[392444139,1761483046224,-500.0,0.00023987,2]
[392444141,1761483046234,-500.0,0.00023987,2]
[392444143,1761483046243,-500.0,0.00023987,2]
[392444146,1761483046253,-500.0,0.00023987,2]
[392444148,1761483046263,-500.0,0.00023987,2]
[392444150,1761483046272,-500.0,0.00023987,2]
[392444152,1761483046281,-500.0,0.00023987,2]
[392444154,1761483046290,-500.0,0.00023987,2]
[392444156,1761483046299,-500.0,0.00023987,2]
[392444157,1761483046308,-500.0,0.00023987,2]
[392444160,1761483046317,-500.0,0.00023987,2]
[392444162,1761483046328,-500.0,0.00023987,2]
[392444164,1761483046338,-500.0,0.00023987,2]
[392444166,1761483046347,-500.0,0.00023987,2]
[392444168,1761483046356,-500.0,0.00023987,2]
[392444170,1761483046366,-500.0,0.00023987,2]
[392444172,1761483046375,-3776.67,0.00024886,10]
[392444174,1761483046384,-49961.78272191,0.00024896,2]
[392444176,1761483046393,-151.0,0.00024896,7]
[392444178,1761483046403,-152.579814,0.00024896,7]
[392444180,1761483046412,-151.0,0.00024896,7]
[392444181,1761483046424,-157.816811,0.00024896,7]
[392444183,1761483046433,-159.610149,0.00024896,7]
[392444185,1761483046444,-151.0,0.00024896,2]
[392444187,1761483046454,-151.0,0.00024896,2]
[392444189,1761483046464,-151.0,0.00024896,7]
[392444191,1761483046474,-151.0,0.00024896,7]
[392444193,1761483046483,-151.0,0.00024896,7]
[392444195,1761483046492,-151.0,0.00024896,7]
[392444197,1761483046502,-151.0,0.00024896,7]
[392444199,1761483046511,-151.0,0.00024896,7]
[392444201,1761483046520,-151.0,0.00024896,7]
[392444203,1761483046530,-166.5409,0.00024896,7]
[392444205,1761483046540,-429.228895,0.00024896,7]
[392444207,1761483046548,-151.0,0.00024896,7]
[392444209,1761483046558,-429.228895,0.00024896,7]
[392444211,1761483046567,-248.626286,0.00024896,7]
[392444213,1761483046576,-429.228895,0.00024896,7]
[392444214,1761483046585,-429.228895,0.00024896,7]
[392444216,1761483046594,-151.0,0.00024896,7]
[392444218,1761483046604,-151.0,0.00024896,7]
[392444220,1761483046614,-180.120342,0.00024896,7]
[392444222,1761483046625,-156.079284,0.00024896,7]
[392444224,1761483046634,-180.120342,0.00024896,7]
[392444225,1761483046644,-180.120342,0.00024896,7]
[392444226,1761483046653,-180.120342,0.00024896,7]
[392444227,1761483046662,-151.0,0.00024896,7]
[392444228,1761483046671,-151.0,0.00024896,7]
[392444229,1761483046681,-823.475396,0.00024896,7]
[392444230,1761483046690,-151.0,0.00024896,7]
[392444231,1761483046700,-823.475396,0.00024896,7]
[392444232,1761483046711,-823.475396,0.00024896,7]
[392444233,1761483046720,-823.475396,0.00024896,7]
[392444234,1761483046729,-151.0,0.00024896,7]
[392444235,1761483046738,-151.0,0.00024896,7]
[392444236,1761483046747,-151.0,0.00024896,7]
[392444237,1761483046758,-151.0,0.00024896,7]
[392444238,1761483046767,-151.0,0.00024896,7]
[392444239,1761483046777,-154.858977,0.00024896,7]
[392444240,1761483046786,-151.0,0.00024896,7]
[392444241,1761483046795,-151.0,0.00024896,7]
[392444242,1761483046804,-152.805737,0.00024896,7]
[392444243,1761483046817,-151.0,0.00024896,7]
[392444244,1761483046828,-151.0,0.00024896,7]
[392444245,1761483046837,-151.0,0.00024896,7]
[392444246,1761483046847,-151.0,0.00024896,7]
[392444247,1761483046855,-151.0,0.00024896,7]
[392444248,1761483046864,-151.0,0.00024896,7]
[392444249,1761483046874,-151.0,0.00024896,7]
[392444250,1761483046885,-192.668746,0.00024896,7]
[392444251,1761483046894,-151.0,0.00024896,7]
[392444252,1761483046903,-151.0,0.00024896,7]
[392444253,1761483046913,-151.0,0.00024896,7]
[392444254,1761483046922,-151.0,0.00024896,7]
[392444255,1761483046931,-151.0,0.00024896,7]
[392444256,1761483046941,-151.0,0.00024896,7]
[392444257,1761483046952,-151.0,0.00024896,7]
[392444258,1761483046961,-151.0,0.00024896,7]
[392444259,1761483046970,-151.0,0.00024896,7]
[392444260,1761483046980,-151.0,0.00024896,7]
[392444261,1761483046989,-151.0,0.00024896,7]
[392444262,1761483046998,-151.0,0.00024896,7]
[392444263,1761483047007,-151.0,0.00024896,7]
[392444264,1761483047016,-152.822631,0.00024896,7]
[392444265,1761483047025,-151.0,0.00024896,7]
[392444266,1761483047035,-151.0,0.00024896,7]
[392444267,1761483047044,-152.082881,0.00024896,7]
[392444268,1761483047053,-151.0,0.00024896,2]
[392444269,1761483047062,-151.0,0.00024896,7]
[392444270,1761483047071,-151.0,0.00024896,2]
[392444271,1761483047081,-267.067905,0.00024896,2]
[392444272,1761483047091,-367.641898,0.00024896,7]
[392444273,1761483047100,-367.641898,0.00024896,7]
[392444274,1761483047109,-359.7305114,0.000249,2]
[392444275,1761483047119,-162.2998523,0.000249,2]
[392444276,1761483047128,-1172.7588116,0.000249,2]
[392444277,1761483047137,-378.210361,0.000249,2]
[392444278,1761483047147,-624637.838957,0.000249,2]
[392444279,1761483047156,-151.0,0.000249,7]
[392444280,1761483047166,-151.0,0.000249,7]
[392444281,1761483047175,-151.0,0.000249,7]
[392444282,1761483047185,-151.0,0.000249,7]
[392444283,1761483047194,-151.0,0.000249,7]
[392444284,1761483047203,-151.0,0.000249,7]
[392444285,1761483047212,-151.0,0.000249,7]
[392444286,1761483047222,-220.909284,0.000249,7]
[392444287,1761483047231,-151.0,0.000249,7]
[392444288,1761483047240,-151.0,0.000249,7]
[392444289,1761483047249,-151.0,0.000249,7]
[392444290,1761483047259,-151.0,0.000249,7]
[392444291,1761483047268,-230.163327,0.000249,7]
[392444292,1761483047277,-151.0,0.000249,7]
[392444293,1761483047287,-196.985461,0.000249,7]
[392444294,1761483047296,-158.795465,0.000249,7]
[392444295,1761483047305,-154.542633,0.000249,7]
[392444296,1761483047315,-299.0141461,0.000249,2]
[392444297,1761483047324,-151.0,0.000249,7]
[392444298,1761483047334,-159.7138837,0.000249,2]
[392444299,1761483047344,-590.6573528,0.000249,2]
[392444300,1761483047353,-151.0,0.000249,7]
[392444301,1761483047363,-151.0,0.000249,7]
[392444302,1761483047372,-154.261592,0.000249,7]
[392444303,1761483047382,-151.0,0.000249,7]
[392444304,1761483047392,-151.0,0.000249,2]
[392444305,1761483047493,-159.357718,0.000249,7]
[392444306,1761483047502,-151.0,0.000249,2]
[392444307,1761483047511,-367.641898,0.000249,7]
[392444308,1761483047520,-367.641898,0.000249,7]
[392444309,1761483047530,-151.0,0.00024986,7]
[392444310,1761483047539,-151.0,0.00024986,7]
[392444311,1761483047547,-327.367854,0.00024986,7]
[392444312,1761483047556,-327.367854,0.00024986,7]
[392444313,1761483047565,-327.367854,0.00024986,7]
[392444314,1761483047574,-327.367854,0.00024986,7]
[392444315,1761483047584,-158.959203,0.00024986,7]
[392444316,1761483047593,-151.0,0.00024986,7]
[392444317,1761483047603,-527.454562,0.00024986,7]
[392444318,1761483047612,-527.454562,0.00024986,7]
[392444319,1761483047621,-527.454562,0.00024986,7]
[392444320,1761483047630,-527.454562,0.00024986,7]
[392444321,1761483047639,-500.0,0.00024986,2]
[392444322,1761483047649,-500.0,0.00024986,2]
[392444323,1761483047658,-151.74267828,0.00024986,2]
[392444324,1761483047667,-154.52929433,0.00024986,2]
[392444325,1761483047677,-299.08198832,0.00024986,2]
[392444326,1761483047687,-151.0,0.00024986,2]
[392444327,1761483047698,-248.81886797,0.00024987,2]
[392444328,1761483047707,-151.0,0.00024987,2]
[392444329,1761483047717,-500.0,0.00024989,2]
[392444330,1761483047726,-151.0,0.0002499,7]
[392444331,1761483047735,-151.0,0.0002499,7]
[392444332,1761483047744,-151.0,0.0002499,7]
[392444333,1761483047753,-151.0,0.0002499,7]
[392444334,1761483047762,-151.0,0.0002499,7]
[392444335,1761483047771,-158.69,0.00024998,2]
[392444336,1761483047779,-156.93939763,0.00025041,2]
[392444337,1761483047788,-151.0,0.00025042,2]
[392444338,1761483047798,-151.0,0.00025097,2]
[392444339,1761483047807,-563.7478168,0.000251,2]
[392444340,1761483047819,-197.64231026,0.00025119,2]
[392444341,1761483047830,-151.0,0.00025151,2]
[392444342,1761483047839,-281.8854738,0.000253,2]
[392444343,1761483047848,-590.6573528,0.000253,2]
[392444344,1761483047858,-590.6573528,0.000253,2]
[392444345,1761483047868,-415.53687456,0.00025371,2]
[392444346,1761483047877,-500.0,0.00025419,2]
[392444347,1761483047886,-1000.0,0.00025421,2]
[392444348,1761483047896,-500.0,0.0002544,2]
[392444349,1761483047906,-197.64231026,0.00025441,2]
[392444350,1761483047915,-151.0,0.0002549,7]
[392444351,1761483047924,-151.0,0.0002549,7]
[392444352,1761483047932,-151.0,0.0002549,7]
[392444353,1761483047941,-151.0,0.0002549,7]
[392444354,1761483047950,-151.0,0.0002549,7]
[392444355,1761483047959,-151.0,0.0002549,7]
[392444356,1761483047968,-151.0,0.0002549,7]
[392444357,1761483047977,-151.0,0.0002549,7]
[392444358,1761483047986,-151.9442,0.0002549,7]
[392444359,1761483047995,-327.367854,0.0002549,7]
[392444360,1761483048004,-327.367854,0.0002549,7]
[392444361,1761483048014,-327.367854,0.0002549,7]
[392444362,1761483048023,-327.367854,0.0002549,7]
[392444363,1761483048032,-151.0,0.0002549,7]
[392444364,1761483048041,-527.454562,0.0002549,7]
[392444365,1761483048050,-151.0,0.0002549,7]
[392444366,1761483048059,-527.454562,0.0002549,7]
[392444367,1761483048068,-151.0,0.0002549,7]
[392444368,1761483048077,-527.454562,0.0002549,7]
[392444369,1761483048087,-527.454562,0.0002549,7]
[392444370,1761483048096,-151.0,0.0002549,2]
[392444371,1761483048105,-151.0,0.0002549,7]
[392444372,1761483048114,-151.0,0.0002549,2]
[392444373,1761483048123,-151.0,0.0002549,7]
[392444374,1761483048132,-151.0,0.0002549,7]
[392444375,1761483048143,-151.0,0.0002549,7]
[392444376,1761483048152,-151.0,0.0002549,7]
[392444377,1761483048161,-151.0,0.0002549,7]
[392444378,1761483048170,-151.0,0.0002549,7]
[392444379,1761483048179,-429.228895,0.0002549,7]
[392444380,1761483048188,-151.0,0.0002549,7]
[392444381,1761483048198,-429.228895,0.0002549,7]
[392444382,1761483048206,-429.228895,0.0002549,7]
[392444383,1761483048215,-429.228895,0.0002549,7]
[392444384,1761483048225,-151.0,0.0002549,7]
[392444385,1761483048234,-154.725646,0.0002549,7]
[392444386,1761483048243,-180.120342,0.0002549,7]
[392444387,1761483048252,-180.120342,0.0002549,7]
[392444388,1761483048261,-180.120342,0.0002549,7]
[392444389,1761483048270,-180.120342,0.0002549,7]
[392444390,1761483048279,-151.0,0.0002549,7]
[392444391,1761483048288,-151.0,0.0002549,7]
[392444392,1761483048297,-823.475396,0.0002549,7]
[392444393,1761483048306,-151.0,0.0002549,7]
[392444394,1761483048316,-823.475396,0.0002549,7]
[392444395,1761483048325,-823.475396,0.0002549,7]
[392444396,1761483048335,-823.475396,0.0002549,7]
[392444397,1761483048345,-151.0,0.0002549,7]
[392444398,1761483048354,-151.0,0.0002549,7]
[392444399,1761483048363,-151.0,0.0002549,7]
[392444400,1761483048372,-151.0,0.0002549,7]
[392444401,1761483048381,-151.0,0.0002549,7]
[392444402,1761483048390,-154.087408,0.0002549,7]
[392444403,1761483048399,-151.0,0.0002549,7]
[392444404,1761483048408,-230.104457,0.0002549,7]
[392444405,1761483048417,-151.0,0.0002549,7]
[392444406,1761483048426,-151.0,0.0002549,7]
[392444407,1761483048435,-151.0,0.0002549,7]
[392444408,1761483048444,-212.084374,0.0002549,7]
[392444409,1761483048454,-151.0,0.0002549,7]
[392444410,1761483048463,-151.0,0.0002549,7]
[392444411,1761483048473,-151.0,0.0002549,7]
[392444412,1761483048482,-151.0,0.0002549,7]
[392444413,1761483048490,-151.0,0.0002549,7]
[392444414,1761483048499,-151.0,0.0002549,7]
[392444415,1761483048508,-151.0,0.0002549,7]
[392444416,1761483048517,-151.0,0.0002549,2]
[392444417,1761483048526,-151.0,0.0002549,7]
[392444418,1761483048535,-151.0,0.0002549,7]
[392444419,1761483048544,-151.0,0.0002549,7]
[392444420,1761483048554,-151.0,0.0002549,7]
[392444421,1761483048563,-151.0,0.0002549,2]
[392444422,1761483048572,-151.0,0.0002549,2]
[392444423,1761483048582,-367.641898,0.0002549,7]
[392444424,1761483048591,-367.641898,0.0002549,7]
[392444425,1761483048600,-500.0,0.00025509,2]
[392444426,1761483048608,-500.0,0.00025509,2]
[392444427,1761483048617,-500.0,0.00025509,2]
[392444428,1761483048626,-441.06201692,0.00025509,2]
[392444429,1761483048636,-155.082641,0.0002551,7]
[392444430,1761483048644,-153.651711,0.0002551,7]
[392444431,1761483048654,-151.0,0.0002551,7]
[392444432,1761483048664,-151.0,0.0002551,7]
[392444433,1761483048672,-151.0,0.0002551,7]
[392444434,1761483048681,-151.0,0.0002551,7]
[392444435,1761483048691,-151.0,0.0002551,7]
[392444436,1761483048700,-230.971868,0.0002551,7]
[392444437,1761483048709,-154.714289,0.0002551,7]
[392444438,1761483048719,-377.71805,0.0002551,7]
[392444439,1761483048728,-377.71805,0.0002551,7]
[392444440,1761483048738,-377.71805,0.0002551,7]
[392444441,1761483048747,-377.71805,0.0002551,7]
[392444442,1761483048757,-377.71805,0.0002551,7]
[392444443,1761483048768,-377.71805,0.0002551,7]
[392444444,1761483048779,-151.0,0.0002551,7]
[392444445,1761483048789,-151.0,0.0002551,7]
[392444446,1761483048798,-377.71805,0.0002551,7]
[392444447,1761483048807,-151.0,0.0002551,7]
[392444448,1761483048819,-151.0,0.0002551,7]
[392444449,1761483048831,-377.71805,0.0002551,7]
[392444450,1761483048840,-151.0,0.0002551,7]
[392444451,1761483048850,-157.426321,0.0002551,7]
[392444452,1761483048859,-151.0,0.0002551,7]
[392444453,1761483048868,-151.0,0.0002551,7]
[392444454,1761483048878,-151.0,0.0002551,7]
[392444455,1761483048888,-151.0,0.0002551,7]
[392444456,1761483048897,-151.0,0.0002551,7]
[392444457,1761483048906,-151.0,0.0002551,7]
[392444458,1761483048917,-151.0,0.0002551,7]
[392444459,1761483048926,-207.695585,0.0002551,7]
[392444460,1761483049020,-151.0,0.0002551,7]
[392444461,1761483049031,-291.759998,0.0002551,7]
[392444462,1761483049042,-151.0,0.0002551,7]
[392444463,1761483049051,-163.252577,0.0002551,7]
[392444464,1761483049060,-151.0,0.0002551,7]
[392444465,1761483049070,-151.0,0.0002551,7]
[392444466,1761483049081,-154.368871,0.0002551,7]
[392444467,1761483049090,-151.0,0.0002551,7]
[392444468,1761483049100,-151.0,0.0002551,7]
[392444469,1761483049109,-151.0,0.0002551,7]
[392444470,1761483049119,-151.0,0.0002551,7]
[392444471,1761483049129,-151.0,0.0002551,7]
[392444472,1761483049138,-236.586893,0.0002551,7]
[392444473,1761483049149,-154.68141,0.0002551,7]
[392444474,1761483049160,-151.0,0.0002551,7]
[392444475,1761483049170,-151.0,0.0002551,7]
[392444476,1761483049180,-245.729529,0.0002551,7]
[392444477,1761483049189,-151.0,0.0002551,7]
[392444478,1761483049199,-151.0,0.0002551,7]
[392444479,1761483049209,-151.0,0.0002551,7]
[392444480,1761483049218,-151.0,0.0002551,7]
[392444481,1761483049227,-256.977087,0.0002551,7]
[392444482,1761483049236,-151.0,0.0002551,7]
[392444483,1761483049245,-151.0,0.0002551,7]
[392444484,1761483049255,-151.0,0.0002551,7]
[392444485,1761483049264,-151.0,0.0002551,7]
[392444486,1761483049273,-191.486975,0.0002551,7]
[392444487,1761483049282,-151.0,0.0002551,7]
[392444488,1761483049291,-151.0,0.0002551,7]
[392444489,1761483049300,-152.513483,0.0002551,7]
[392444490,1761483049310,-151.0,0.0002551,7]
[392444491,1761483049319,-151.0,0.0002551,7]
[392444492,1761483049328,-191.45492972,0.0002551,7]
[392444493,1761483049339,-151.0,0.0002551,7]
[392444494,1761483049348,-154.82412,0.0002551,7]
[392444495,1761483049358,-327.367854,0.0002551,7]
[392444496,1761483049368,-327.367854,0.0002551,7]
[392444497,1761483049381,-327.367854,0.0002551,7]
[392444498,1761483049390,-327.367854,0.0002551,7]
[392444499,1761483049403,-151.0,0.0002551,7]
[392444500,1761483049413,-527.454562,0.0002551,7]
[392444501,1761483049422,-151.0,0.0002551,7]
[392444502,1761483049431,-527.454562,0.0002551,7]
[392444503,1761483049440,-269.811586,0.0002551,7]
[392444504,1761483049450,-527.454562,0.0002551,7]
[392444505,1761483049459,-527.454562,0.0002551,7]
[392444506,1761483049468,-151.0,0.0002551,2]
[392444507,1761483049477,-151.0,0.0002551,7]
[392444508,1761483049486,-151.0,0.0002551,2]
[392444509,1761483049495,-151.0,0.0002551,7]
[392444510,1761483049507,-151.0,0.0002551,7]
[392444511,1761483049516,-151.0,0.0002551,7]
[392444512,1761483049525,-151.0,0.0002551,7]
[392444513,1761483049534,-151.0,0.0002551,7]
[392444514,1761483049543,-151.0,0.0002551,7]
[392444515,1761483049553,-429.228895,0.0002551,7]
[392444516,1761483049562,-429.228895,0.0002551,7]
[392444517,1761483049571,-429.228895,0.0002551,7]
[392444518,1761483049580,-429.228895,0.0002551,7]
[392444519,1761483049590,-151.0,0.0002551,7]
[392444520,1761483049599,-180.120342,0.0002551,7]
[392444521,1761483049608,-180.120342,0.0002551,7]
[392444522,1761483049618,-180.120342,0.0002551,7]
[392444523,1761483049627,-180.120342,0.0002551,7]
[392444524,1761483049636,-151.0,0.0002551,7]
[392444525,1761483049646,-151.0,0.0002551,7]
[392444526,1761483049656,-823.475396,0.0002551,7]
[392444527,1761483049665,-227.351691,0.0002551,7]
[392444528,1761483049674,-823.475396,0.0002551,7]
[392444529,1761483049683,-823.475396,0.0002551,7]
[392444530,1761483049693,-823.475396,0.0002551,7]
[392444531,1761483049702,-151.0,0.0002551,7]
[392444532,1761483049711,-151.0,0.0002551,7]
[392444533,1761483049720,-151.0,0.0002551,7]
[392444534,1761483049729,-244.995952,0.0002551,7]
[392444535,1761483049738,-294.685963,0.0002551,7]
[392444536,1761483049747,-155.579006,0.0002551,7]
[392444537,1761483049756,-151.380795,0.0002551,7]
[392444538,1761483049765,-151.0,0.0002551,7]
[392444539,1761483049774,-151.0,0.0002551,7]
[392444540,1761483049783,-151.0,0.0002551,7]
[392444541,1761483049792,-151.0,0.0002551,7]
[392444542,1761483049801,-151.0,0.0002551,7]
[392444543,1761483049811,-151.0,0.0002551,7]
[392444544,1761483049824,-151.0,0.0002551,7]
[392444545,1761483049834,-151.0,0.0002551,7]
[392444546,1761483049843,-151.0,0.0002551,7]
[392444547,1761483049852,-160.538737,0.0002551,7]
[392444548,1761483049863,-151.0,0.0002551,7]
[392444549,1761483049873,-160.387405,0.0002551,7]
[392444550,1761483049882,-151.0,0.0002551,2]
[392444551,1761483049893,-151.0,0.0002551,7]
[392444552,1761483049902,-151.0,0.0002551,2]
[392444553,1761483049911,-367.641898,0.0002551,7]
[392444554,1761483049921,-151.0,0.00025511,7]
[392444555,1761483049930,-151.0,0.00025511,7]
[392444556,1761483049939,-151.0,0.00025511,7]
[392444557,1761483049949,-151.0,0.00025511,7]
[392444558,1761483049958,-155.300181,0.00025511,7]
[392444559,1761483049968,-327.367854,0.00025511,7]
[392444560,1761483049979,-327.367854,0.00025511,7]
[392444561,1761483049989,-327.367854,0.00025511,7]
[392444562,1761483049999,-327.367854,0.00025511,7]
[392444563,1761483050008,-151.0,0.00025511,7]
[392444564,1761483050017,-527.454562,0.00025511,7]
[392444565,1761483050027,-151.0,0.00025511,7]
[392444566,1761483050036,-527.454562,0.00025511,7]
[392444567,1761483050046,-527.454562,0.00025511,7]
[392444568,1761483050055,-527.454562,0.00025511,7]
[392444569,1761483050065,-151.0,0.00025511,2]
[392444570,1761483050074,-151.0,0.00025511,7]
[392444571,1761483050084,-151.0,0.00025511,2]
[392444572,1761483050093,-151.0,0.00025511,7]
[392444573,1761483050103,-151.0,0.00025511,7]
[392444574,1761483050112,-191.440143,0.00025511,7]
[392444575,1761483050122,-153.378122,0.00025511,7]
[392444576,1761483050132,-151.0,0.00025511,7]
[392444577,1761483050141,-151.0,0.00025511,7]
[392444578,1761483050150,-429.228895,0.00025511,7]
[392444579,1761483050160,-429.228895,0.00025511,7]
[392444580,1761483050169,-429.228895,0.00025511,7]
[392444581,1761483050179,-429.228895,0.00025511,7]
[392444582,1761483050188,-151.0,0.00025511,7]
[392444583,1761483050197,-180.120342,0.00025511,7]
[392444584,1761483050207,-180.120342,0.00025511,7]
[392444585,1761483050216,-180.120342,0.00025511,7]
[392444586,1761483050225,-180.120342,0.00025511,7]
[392444587,1761483050234,-151.0,0.00025511,7]
[392444588,1761483050244,-151.0,0.00025511,7]
[392444589,1761483050254,-823.475396,0.00025511,7]
[392444590,1761483050264,-823.475396,0.00025511,7]
[392444591,1761483050273,-823.475396,0.00025511,7]
[392444592,1761483050283,-823.475396,0.00025511,7]
[392444593,1761483050292,-151.0,0.00025511,7]
[392444594,1761483050301,-151.0,0.00025511,7]
[392444595,1761483050311,-151.0,0.00025511,7]
[392444596,1761483050320,-151.0,0.00025521,7]
[392444597,1761483050329,-151.0,0.00025521,7]
[392444598,1761483050339,-158.134822,0.00025521,7]
[392444599,1761483050349,-151.0,0.00025521,7]
[392444600,1761483050358,-151.0,0.00025521,7]
[392444601,1761483050367,-152.767289,0.00025521,7]
[392444602,1761483050455,-179.800224,0.00025521,7]
[392444603,1761483050465,-153.150521,0.00025521,7]
[392444604,1761483050474,-151.0,0.00025521,7]
[392444605,1761483050483,-172.437188,0.0002553,7]
[392444606,1761483050493,-153.411663,0.0002553,7]
[392444607,1761483050502,-151.0,0.0002553,7]
[392444608,1761483050511,-151.0,0.0002553,7]
[392444609,1761483050520,-157.963674,0.0002553,7]